fUSD/lending_fUSD_20260517
["ID","MTS","AMOUNT","RATE_DAILY","PERIOD"]
[422438846,1778947845000,-48419.66894767,0.000215,2]
[422438844,1778947845000,-2987.96911408,0.00021456,2]
[422438837,1778947845000,-1500.0,0.00021432,2]
[422438843,1778947845000,-360.56781024,0.00021456,2]
[422438855,1778947845000,-165.407147,0.00021918,2]
[422438854,1778947845000,-151.0,0.00021918,2]
[422438845,1778947845000,-337.48572113,0.00021456,2]
[422438851,1778947845000,-289.0529305,0.00021918,3]
[422438852,1778947845000,-151.0,0.00021918,2]
[422438856,1778947845000,-151.0,0.00021918,2]
[422438853,1778947845000,-151.0,0.00021918,2]
[422438857,1778947845000,-151.0,0.00021918,2]
[422438860,1778947845000,-1737.55151806,0.00021918,2]
[422438859,1778947845000,-3074.97,0.00021918,2]
[422438858,1778947845000,-5000.0,0.00021918,2]
[422438848,1778947845000,-474.86394109,0.00021504,2]
[422438849,1778947845000,-5779.96,0.00021584,2]
[422438850,1778947845000,-3174.36,0.00021841,2]
[422438920,1778947846000,-249.67,0.000232,2]
[422438924,1778947846000,-150.823,0.000232,2]
[422438916,1778947846000,-1237.80329437,0.0002313,2]
[422438922,1778947846000,-150.0,0.000232,2]
[422438925,1778947846000,-756.128,0.000232,2]
[422438926,1778947846000,-3543.0,0.000232,2]
[422438921,1778947846000,-150.974,0.000232,2]
[422438923,1778947846000,-151.0,0.000232,2]
[422438927,1778947846000,-926.0,0.000232,2]
[422438938,1778947846000,-1250.0,0.00024,2]
[422438932,1778947846000,-195.0,0.00024,2]
[422438933,1778947846000,-171.0,0.00024,2]
[422438930,1778947846000,-3174.36,0.00023682,2]
[422438929,1778947846000,-163.0,0.0002368,3]
[422438939,1778947846000,-394.0,0.00024,2]
[422438934,1778947846000,-607.0,0.00024,2]
[422438919,1778947846000,-250.0,0.000232,2]
[422438935,1778947846000,-939.0,0.00024,2]
[422438928,1778947846000,-1354.0,0.000232,2]
[422438918,1778947846000,-165.938,0.000232,2]
[422438913,1778947846000,-1223.0,0.00023035,2]
[422438915,1778947846000,-6054.0,0.00023035,2]
[422438936,1778947846000,-295.0,0.00024,2]
[422438901,1778947846000,-363.0,0.00023,30]
[422438895,1778947846000,-250.0,0.00022885,2]
[422438897,1778947846000,-195.0,0.00023,2]
[422438896,1778947846000,-192.979,0.00022885,2]
[422438899,1778947846000,-607.0,0.00023,2]
[422438900,1778947846000,-939.0,0.00023,2]
[422438898,1778947846000,-171.0,0.00023,2]
[422438903,1778947846000,-309.0,0.00023,2]
[422438917,1778947846000,-150.224,0.000232,2]
[422438902,1778947846000,-295.0,0.00023,2]
[422438906,1778947846000,-394.0,0.00023,2]
[422438904,1778947846000,-412.0,0.00023,2]
[422438908,1778947846000,-179.0,0.00023,2]
[422438907,1778947846000,-313.0,0.00023,2]
[422438905,1778947846000,-1250.0,0.00023,2]
[422438909,1778947846000,-576.0,0.00023,2]
[422438911,1778947846000,-284.625,0.00023035,2]
[422438910,1778947846000,-847.98,0.00023,7]
[422438912,1778947846000,-1270.0,0.00023035,2]
[422438914,1778947846000,-930.0,0.00023035,2]
[422438937,1778947846000,-309.0,0.00024,2]
[422438931,1778947846000,-1737.55151806,0.00023744,2]
[422438942,1778947846000,-179.0,0.00024,2]
[422438967,1778947846000,-210.0,0.00025,2]
[422438969,1778947846000,-615.96426354,0.00025,2]
[422438975,1778947846000,-179.7,0.00025,2]
[422438971,1778947846000,-295.77307124,0.00025,2]
[422438974,1778947846000,-398.39833639,0.00025,2]
[422438968,1778947846000,-172.13147767,0.00025,2]
[422438972,1778947846000,-309.89157137,0.00025,2]
[422438976,1778947846000,-179.7,0.00025,2]
[422438970,1778947846000,-944.0,0.00025,2]
[422438973,1778947846000,-1268.24247352,0.00025,2]
[422438977,1778947846000,-330.24741556,0.00025,2]
[422438978,1778947846000,-181.62060025,0.00025,2]
[422438979,1778947846000,-577.27724586,0.00025,2]
[422438980,1778947846000,-458.15589909,0.00025,2]
[422438982,1778947846000,-56617.88213438,0.00025,7]
[422438984,1778947846000,-2279.43219507,0.00025,2]
[422438983,1778947846000,-541.87120042,0.00025,5]
[422438985,1778947846000,-402777.48626083,0.00025,2]
[422438986,1778947846000,-3779.55,0.00025,2]
[422438965,1778947846000,-500.0,0.00024932,2]
[422438961,1778947846000,-500.0,0.00024658,2]
[422438966,1778947846000,-400.0,0.0002497,2]
[422438956,1778947846000,-183.704599,0.00024658,2]
[422438941,1778947846000,-313.0,0.00024,2]
[422438951,1778947846000,-1288.7,0.00024324,2]
[422438957,1778947846000,-956.2,0.00024658,2]
[422438943,1778947846000,-576.0,0.00024,2]
[422438950,1778947846000,-3753.39752942,0.0002421,2]
[422438949,1778947846000,-2476.23,0.00024174,2]
[422438945,1778947846000,-303.99,0.0002411,2]
[422438944,1778947846000,-284.78,0.0002411,2]
[422438947,1778947846000,-462.3,0.00024174,2]
[422438948,1778947846000,-1462.64,0.00024174,2]
[422438946,1778947846000,-559.40795171,0.00024147,2]
[422438952,1778947846000,-1000.0,0.00024658,2]
[422438953,1778947846000,-151.0,0.00024658,2]
[422438958,1778947846000,-151.0,0.00024658,2]
[422438959,1778947846000,-151.0,0.00024658,2]
[422438962,1778947846000,-500.0,0.00024658,2]
[422438960,1778947846000,-500.0,0.00024658,2]
[422438940,1778947846000,-500.0,0.00024,2]
[422438955,1778947846000,-151.0,0.00024658,2]
[422438963,1778947846000,-193.86641471,0.00024658,2]
[422438954,1778947846000,-151.0,0.00024658,2]
[422438964,1778947846000,-1737.55151806,0.00024658,2]
[422438990,1778947847000,-7203.22470885,0.00013896,2]
[422438991,1778947847000,-878.64494776,0.00013896,2]
[422438992,1778947847000,-963.76004824,0.00013896,2]
[422438993,1778947847000,-0.0009823,0.00013896,2]
[422438994,1778947847000,-4650.00000001,0.00013896,2]
[422438995,1778947847000,-621.42208072,0.00013896,2]
[422438996,1778947847000,-28.32305868,0.00014024,2]
[422438998,1778947847000,-931.35301142,0.00014024,2]
[422438999,1778947847000,-1372.93298732,0.00014147,2]
[422439000,1778947847000,-1444.98959512,0.00014147,2]
[422439002,1778947847000,-11499.13018544,0.00014147,2]
[422439003,1778947847000,-2694.0,0.0002,2]
[422439005,1778947847000,-1163.67981456,0.0002311,2]
[422439004,1778947847000,-3248.18,0.00021273,2]
[422438997,1778947847000,-122.67694132,0.00014024,2]
[422439001,1778947847000,-152.0,0.00012589,2]
[422439006,1778947967000,229.72395532,0.0003013,120]
[422439007,1778947980000,276.49145418,0.0001,2]
[422439008,1778947990000,528.36,0.00030082,120]
[422439009,1778947995000,208.353159,0.000245,120]
[422439010,1778948022000,611.269658,0.000245,120]
[422439011,1778948024000,1839.572002,0.000245,120]
[422439012,1778948028000,552.826558,0.00023691,120]
[422439013,1778948034000,162.1229,0.00030136,120]
[422439016,1778948124000,341.56,6.19e-05,2]
[422439015,1778948124000,341.56,5.905e-05,2]
[422439014,1778948124000,341.56,5.621e-05,2]
[422439021,1778948125000,341.56,7.611e-05,2]
[422439020,1778948125000,341.56,7.327e-05,2]
[422439019,1778948125000,341.56,7.042e-05,2]
[422439018,1778948125000,341.56,6.758e-05,2]
[422439017,1778948125000,341.56,6.474e-05,2]
[422439022,1778948126000,341.56,7.895e-05,2]
[422439025,1778948126000,341.56,8.748e-05,2]
[422439024,1778948126000,341.56,8.464e-05,2]
[422439023,1778948126000,341.56,8.179e-05,2]
[422439029,1778948127000,341.56,9.885e-05,2]
[422439028,1778948127000,341.56,9.601e-05,2]
[422439027,1778948127000,341.56,9.316e-05,2]
[422439026,1778948127000,341.56,9.032e-05,2]
[422439031,1778948153000,354.56001525,0.00026791,120]
[422439032,1778948154000,152.0,0.00020996,120]
[422439033,1778948191000,323.61779478,8.831e-05,2]
[422439034,1778948218000,150.0,9.864e-05,2]
[422439038,1778948405000,457.85711013,0.00010036,2]
[422439039,1778948425000,8242.9,0.00010075,2]
[422439040,1778948444000,10796.86,0.00010085,2]
[422439041,1778948473000,1010.43,0.00010077,2]
[422439042,1778948476000,2000.0,0.00010088,2]
[422439043,1778948491000,161.96129814,8.831e-05,2]
[422439044,1778948500000,283.9190836,0.00010092,2]
[422439045,1778948500000,645.1809164,0.00010092,2]
[422439046,1778948502000,559.2,0.00010096,2]
[422439047,1778948561000,344.81706923,0.00010069,2]
[422439048,1778948563000,500.0,0.00010087,2]
[422439049,1778948600000,200.0,0.00010082,2]
[422439050,1778948608000,159.298074,0.00030106,120]
[422439051,1778948669000,14668.23,0.00010078,2]
[422439052,1778948756000,2909.53,0.0001009,2]
[422439053,1778948795000,2973.08,0.0001009,2]
[422439054,1778948889000,229.87804614,0.00010069,2]
[422439055,1778948912000,157.64,0.00010056,2]
[422439056,1778948914000,698.86,0.00010056,2]
[422439057,1778948923000,237.99,9.536e-05,2]
[422439058,1778948970000,-831.84104412,0.00010119,2]
[422439059,1778948976000,42328.85,0.0001006,2]
[422439060,1778949012000,158.93,5.131e-05,2]
[422439065,1778949013000,158.93,7.596e-05,2]
[422439064,1778949013000,158.93,7.103e-05,2]
[422439063,1778949013000,158.93,6.61e-05,2]
[422439062,1778949013000,158.93,6.117e-05,2]
[422439061,1778949013000,158.93,5.624e-05,2]
[422439070,1778949014000,158.93,0.00010061,2]
[422439069,1778949014000,158.93,9.568e-05,2]
[422439068,1778949014000,158.93,9.075e-05,2]
[422439067,1778949014000,158.93,8.582e-05,2]
[422439066,1778949014000,158.93,8.089e-05,2]
[422439072,1778949031000,-205.65895588,0.00010119,2]
[422439073,1778949031000,-163.39,0.00010128,2]
[422439074,1778949031000,-1051.34,0.00010136,2]
[422439076,1778949031000,-1200.0,0.00010168,2]
[422439075,1778949031000,-5779.96,0.00010158,2]
[422439077,1778949031000,-242.97377624,0.00010169,2]
[422439078,1778949031000,-242.97377624,0.00010204,2]
[422439109,1778949032000,-155.76592265,0.00011131,2]
[422439112,1778949032000,-265.91782473,0.00011131,2]
[422439114,1778949032000,-229.87804614,0.00011171,2]
[422439110,1778949032000,-250.0,0.00011131,2]
[422439111,1778949032000,-250.0,0.00011131,2]
[422439113,1778949032000,-1037.5,0.00011131,2]
[422439105,1778949032000,-1085.0,0.00011029,2]
[422439116,1778949032000,-1000.0,0.00011232,2]
[422439122,1778949032000,-152.0,0.00011368,2]
[422439118,1778949032000,-420.0,0.00011348,2]
[422439115,1778949032000,-1680.0,0.00011185,2]
[422439119,1778949032000,-420.0,0.00011348,2]
[422439120,1778949032000,-307.0,0.00011348,2]
[422439125,1778949032000,-152.0,0.00011396,2]
[422439124,1778949032000,-152.0,0.00011396,2]
[422439121,1778949032000,-2000.0,0.00011349,2]
[422439123,1778949032000,-306.13,0.00011381,2]
[422439126,1778949032000,-500.0,0.00011403,2]
[422439128,1778949032000,-166.66,0.00011484,2]
[422439127,1778949032000,-1051.34,0.00011403,2]
[422439138,1778949032000,-1692.59991253,0.00011751,2]
[422439129,1778949032000,-2500.0,0.00011651,2]
[422439130,1778949032000,-1190.40117411,0.00011652,2]
[422439136,1778949032000,-44207.0,0.00011726,2]
[422439108,1778949032000,-1000.0,0.0001113,2]
[422439107,1778949032000,-1093.0,0.0001113,2]
[422439104,1778949032000,-16697.65,0.00011022,2]
[422439133,1778949032000,-340.80268506,0.00011652,2]
[422439081,1778949032000,-300.0,0.0001032,2]
[422439082,1778949032000,-300.0,0.0001032,2]
[422439080,1778949032000,-208.44072055,0.00010269,2]
[422439079,1778949032000,-1085.0,0.00010219,2]
[422439083,1778949032000,-300.0,0.0001032,2]
[422439084,1778949032000,-300.0,0.0001032,2]
[422439085,1778949032000,-1085.0,0.00010321,2]
[422439087,1778949032000,-1085.0,0.00010422,2]
[422439091,1778949032000,-708.01527505,0.00010624,2]
[422439090,1778949032000,-376.98472495,0.00010624,2]
[422439086,1778949032000,-1037.5,0.00010372,2]
[422439088,1778949032000,-1085.0,0.00010523,2]
[422439089,1778949032000,-229.87804614,0.0001062,2]
[422439092,1778949032000,-1037.5,0.00010625,2]
[422439097,1778949032000,-166.66,0.00010773,2]
[422439093,1778949032000,-500.0,0.0001068,2]
[422439102,1778949032000,-150.0,0.00010959,2]
[422439098,1778949032000,-150.0,0.00010773,2]
[422439094,1778949032000,-1085.0,0.00010725,2]
[422439100,1778949032000,-1037.5,0.00010878,2]
[422439095,1778949032000,-663.29,0.0001073,2]
[422439096,1778949032000,-242.97377624,0.00010738,2]
[422439103,1778949032000,-1000.0,0.00011021,2]
[422439101,1778949032000,-1085.0,0.00010928,2]
[422439099,1778949032000,-1085.0,0.00010827,2]
[422439106,1778949032000,-166.66,0.00011128,2]
[422439137,1778949032000,-1208.61248979,0.00011742,2]
[422439117,1778949032000,-150.0,0.00011233,2]
[422439131,1778949032000,-13964.49522062,0.00011652,2]
[422439169,1778949032000,-1692.59991253,0.00011751,2]
[422439171,1778949032000,-1692.59991253,0.00011751,2]
[422439165,1778949032000,-1692.59991253,0.00011751,2]
[422439170,1778949032000,-1692.59991253,0.00011751,2]
[422439167,1778949032000,-1692.59991253,0.00011751,2]
[422439166,1778949032000,-1692.59991253,0.00011751,2]
[422439168,1778949032000,-1692.59991253,0.00011751,2]
[422439172,1778949032000,-1692.59991253,0.00011751,2]
[422439173,1778949032000,-1692.59991253,0.00011751,2]
[422439178,1778949032000,-1692.59991253,0.00011751,2]
[422439176,1778949032000,-1692.59991253,0.00011751,2]
[422439175,1778949032000,-1692.59991253,0.00011751,2]
[422439163,1778949032000,-1692.59991253,0.00011751,2]
[422439179,1778949032000,-1692.59991253,0.00011751,2]
[422439181,1778949032000,-1692.59991253,0.00011751,2]
[422439183,1778949032000,-1692.59991253,0.00011751,2]
[422439184,1778949032000,-1692.59991253,0.00011751,2]
[422439180,1778949032000,-1692.59991253,0.00011751,2]
[422439182,1778949032000,-1692.59991253,0.00011751,2]
[422439186,1778949032000,-1692.59991253,0.00011751,2]
[422439185,1778949032000,-1692.59991253,0.00011751,2]
[422439187,1778949032000,-1692.59991253,0.00011751,2]
[422439189,1778949032000,-1692.59991253,0.00011751,2]
[422439190,1778949032000,-1692.59991253,0.00011751,2]
[422439188,1778949032000,-1692.59991253,0.00011751,2]
[422439191,1778949032000,-1692.59991253,0.00011751,2]
[422439132,1778949032000,-17633.31011687,0.00011652,2]
[422439174,1778949032000,-1692.59991253,0.00011751,2]
[422439177,1778949032000,-1692.59991253,0.00011751,2]
[422439160,1778949032000,-1692.59991253,0.00011751,2]
[422439164,1778949032000,-1692.59991253,0.00011751,2]
[422439134,1778949032000,-500.0,0.00011677,2]
[422439135,1778949032000,-169.65393973,0.00011694,2]
[422439139,1778949032000,-1692.59991253,0.00011751,2]
[422439145,1778949032000,-1692.59991253,0.00011751,2]
[422439140,1778949032000,-1692.59991253,0.00011751,2]
[422439142,1778949032000,-1692.59991253,0.00011751,2]
[422439147,1778949032000,-1692.59991253,0.00011751,2]
[422439150,1778949032000,-1692.59991253,0.00011751,2]
[422439144,1778949032000,-1692.59991253,0.00011751,2]
[422439149,1778949032000,-1692.59991253,0.00011751,2]
[422439146,1778949032000,-1692.59991253,0.00011751,2]
[422439143,1778949032000,-1692.59991253,0.00011751,2]
[422439141,1778949032000,-1692.59991253,0.00011751,2]
[422439162,1778949032000,-1692.59991253,0.00011751,2]
[422439152,1778949032000,-1692.59991253,0.00011751,2]
[422439151,1778949032000,-1692.59991253,0.00011751,2]
[422439155,1778949032000,-1692.59991253,0.00011751,2]
[422439156,1778949032000,-1692.59991253,0.00011751,2]
[422439157,1778949032000,-1692.59991253,0.00011751,2]
[422439154,1778949032000,-1692.59991253,0.00011751,2]
[422439158,1778949032000,-1692.59991253,0.00011751,2]
[422439153,1778949032000,-1692.59991253,0.00011751,2]
[422439161,1778949032000,-1692.59991253,0.00011751,2]
[422439159,1778949032000,-1692.59991253,0.00011751,2]
[422439148,1778949032000,-1692.59991253,0.00011751,2]
[422439214,1778949033000,-1692.59991253,0.00011751,2]
[422439212,1778949033000,-1692.59991253,0.00011751,2]
[422439230,1778949033000,-2134.82905757,0.00011751,2]
[422439216,1778949033000,-500.77055595,0.00011751,2]
[422439210,1778949033000,-1692.59991253,0.00011751,2]
[422439211,1778949033000,-1692.59991253,0.00011751,2]
[422439217,1778949033000,-1692.59991253,0.00011751,2]
[422439220,1778949033000,-1692.59991253,0.00011751,2]
[422439215,1778949033000,-1692.59991253,0.00011751,2]
[422439219,1778949033000,-1692.59991253,0.00011751,2]
[422439221,1778949033000,-1692.59991253,0.00011751,2]
[422439229,1778949033000,-533.78126036,0.00011751,2]
[422439213,1778949033000,-1692.59991253,0.00011751,2]
[422439218,1778949033000,-1692.59991253,0.00011751,2]
[422439209,1778949033000,-1692.59991253,0.00011751,2]
[422439195,1778949033000,-1692.59991253,0.00011751,2]
[422439203,1778949033000,-1692.59991253,0.00011751,2]
[422439224,1778949033000,-1692.59991253,0.00011751,2]
[422439196,1778949033000,-1692.59991253,0.00011751,2]
[422439192,1778949033000,-1692.59991253,0.00011751,2]
[422439194,1778949033000,-1692.59991253,0.00011751,2]
[422439193,1778949033000,-1692.59991253,0.00011751,2]
[422439199,1778949033000,-1692.59991253,0.00011751,2]
[422439205,1778949033000,-1692.59991253,0.00011751,2]
[422439208,1778949033000,-1692.59991253,0.00011751,2]
[422439197,1778949033000,-1692.59991253,0.00011751,2]
[422439206,1778949033000,-1692.59991253,0.00011751,2]
[422439201,1778949033000,-1692.59991253,0.00011751,2]
[422439202,1778949033000,-1692.59991253,0.00011751,2]
[422439200,1778949033000,-1692.59991253,0.00011751,2]
[422439204,1778949033000,-1692.59991253,0.00011751,2]
[422439198,1778949033000,-1692.59991253,0.00011751,2]
[422439228,1778949033000,-500.0,0.00011751,2]
[422439207,1778949033000,-1692.59991253,0.00011751,2]
[422439226,1778949033000,-500.0,0.00011751,2]
[422439247,1778949033000,-105580.74817072,0.00011752,2]
[422439244,1778949033000,-500.0,0.00011752,2]
[422439250,1778949033000,-1299.03109547,0.00011752,2]
[422439249,1778949033000,-335.31456548,0.00011752,2]
[422439248,1778949033000,-178006.24621329,0.00011752,2]
[422439259,1778949033000,-858.64724402,0.00011752,2]
[422439245,1778949033000,-371542.03487926,0.00011752,2]
[422439252,1778949033000,-259.37939,0.00011752,2]
[422439253,1778949033000,-598.50315,0.00011752,2]
[422439254,1778949033000,-2468.05833915,0.00011752,2]
[422439256,1778949033000,-3809.40052919,0.00011752,2]
[422439258,1778949033000,-382.69111976,0.00011752,2]
[422439257,1778949033000,-34141.28420659,0.00011752,2]
[422439223,1778949033000,-1692.59991253,0.00011751,2]
[422439251,1778949033000,-4632.34278382,0.00011752,2]
[422439246,1778949033000,-60154.42271212,0.00011752,2]
[422439255,1778949033000,-340.48204018,0.00011752,2]
[422439243,1778949033000,-509.59573628,0.00011751,2]
[422439242,1778949033000,-523.30296489,0.00011751,2]
[422439222,1778949033000,-1692.59991253,0.00011751,2]
[422439225,1778949033000,-500.0,0.00011751,2]
[422439231,1778949033000,-2134.82905757,0.00011751,2]
[422439237,1778949033000,-500.0,0.00011751,2]
[422439233,1778949033000,-500.0,0.00011751,2]
[422439234,1778949033000,-386.5375887,0.00011751,2]
[422439227,1778949033000,-500.0,0.00011751,2]
[422439232,1778949033000,-2134.82905757,0.00011751,2]
[422439239,1778949033000,-254.39527316,0.00011751,2]
[422439236,1778949033000,-500.0,0.00011751,2]
[422439240,1778949033000,-612.26877207,0.00011751,2]
[422439238,1778949033000,-500.0,0.00011751,2]
[422439235,1778949033000,-500.0,0.00011751,2]
[422439241,1778949033000,-500.0,0.00011751,2]
[422439260,1778949034000,500.0,0.00030137,120]
[422439301,1778949038000,-150.0,0.00012135,3]
[422439303,1778949038000,-151.67627943,0.00012135,3]
[422439302,1778949038000,-503.46475125,0.00012135,3]
[422439298,1778949038000,-500.0,0.00012135,3]
[422439294,1778949038000,-500.0,0.00012135,3]
[422439297,1778949038000,-500.0,0.00012135,3]
[422439299,1778949038000,-500.0,0.00012135,3]
[422439305,1778949038000,-152.1154947,0.00012135,3]
[422439296,1778949038000,-500.0,0.00012135,3]
[422439304,1778949038000,-150.0,0.00012135,3]
[422439312,1778949038000,-500.0,0.00012135,3]
[422439306,1778949038000,-500.0,0.00012135,3]
[422439307,1778949038000,-500.0,0.00012135,3]
[422439317,1778949038000,-520.53619171,0.00012135,3]
[422439309,1778949038000,-500.0,0.00012135,3]
[422439311,1778949038000,-500.0,0.00012135,3]
[422439310,1778949038000,-500.0,0.00012135,3]
[422439314,1778949038000,-500.0,0.00012135,3]
[422439316,1778949038000,-500.0,0.00012135,3]
[422439313,1778949038000,-500.0,0.00012135,3]
[422439295,1778949038000,-500.0,0.00012135,3]
[422439308,1778949038000,-500.0,0.00012135,3]
[422439287,1778949038000,-500.0,0.00012135,3]
[422439274,1778949038000,-197.81098472,0.00011793,2]
[422439289,1778949038000,-500.0,0.00012135,3]
[422439269,1778949038000,-326.54220568,0.00011752,2]
[422439271,1778949038000,-1734964.14467016,0.00011752,2]
[422439281,1778949038000,-500.0,0.00012135,3]
[422439270,1778949038000,-300.72668511,0.00011752,2]
[422439273,1778949038000,-219.18923847,0.00011781,2]
[422439276,1778949038000,-255.0,0.00011807,2]
[422439272,1778949038000,-2076.0945,0.00011752,2]
[422439315,1778949038000,-531.51017441,0.00012135,3]
[422439278,1778949038000,-240.23450079,0.00011852,2]
[422439277,1778949038000,-166.66,0.0001184,2]
[422439290,1778949038000,-500.0,0.00012135,3]
[422439275,1778949038000,-197.81098472,0.00011793,2]
[422439280,1778949038000,-306.13,0.00012013,2]
[422439282,1778949038000,-500.0,0.00012135,3]
[422439283,1778949038000,-500.0,0.00012135,3]
[422439284,1778949038000,-500.0,0.00012135,3]
[422439292,1778949038000,-289.56535262,0.00012135,3]
[422439285,1778949038000,-500.0,0.00012135,3]
[422439291,1778949038000,-500.0,0.00012135,3]
[422439293,1778949038000,-500.0,0.00012135,3]
[422439286,1778949038000,-500.0,0.00012135,3]
[422439288,1778949038000,-500.0,0.00012135,3]
[422439279,1778949038000,-500.0,0.00011951,2]
[422439319,1778949038000,-500.0,0.00012135,3]
[422439300,1778949038000,-500.0,0.00012135,3]
[422439329,1778949038000,-1092.836806,0.00012389,2]
[422439343,1778949038000,-306.13,0.00012645,2]
[422439354,1778949038000,-150.99,0.00012893,2]
[422439353,1778949038000,-6991.09,0.00012893,2]
[422439347,1778949038000,-183.5,0.00012742,2]
[422439345,1778949038000,-183.5,0.00012742,2]
[422439349,1778949038000,-33171.8854,0.00012742,2]
[422439351,1778949038000,-4999.99,0.00012893,2]
[422439356,1778949038000,-9999.99,0.00012893,2]
[422439358,1778949038000,-2200.42,0.00012893,2]
[422439366,1778949038000,-74134.65,0.00012893,2]
[422439350,1778949038000,-1578.47,0.00012893,2]
[422439355,1778949038000,-24999.99,0.00012893,2]
[422439361,1778949038000,-499.99,0.00012893,2]
[422439363,1778949038000,-9999.99,0.00012893,2]
[422439362,1778949038000,-12772.03,0.00012893,2]
[422439360,1778949038000,-7644.1,0.00012893,2]
[422439364,1778949038000,-299.99,0.00012893,2]
[422439365,1778949038000,-520.39,0.00012893,2]
[422439367,1778949038000,-9999.99,0.00012893,2]
[422439369,1778949038000,-999.99,0.00012893,2]
[422439368,1778949038000,-14888.69,0.00012893,2]
[422439318,1778949038000,-500.0,0.00012135,3]
[422439357,1778949038000,-3012.56,0.00012893,2]
[422439344,1778949038000,-1051.34,0.0001267,2]
[422439359,1778949038000,-61607.49,0.00012893,2]
[422439352,1778949038000,-9006.57,0.00012893,2]
[422439321,1778949038000,-506.27883011,0.00012135,3]
[422439346,1778949038000,-183.5,0.00012742,2]
[422439322,1778949038000,-166.66,0.00012195,2]
[422439320,1778949038000,-500.0,0.00012135,3]
[422439327,1778949038000,-604.229505,0.00012389,2]
[422439323,1778949038000,-500.0,0.00012225,2]
[422439325,1778949038000,-528.36,0.00012329,2]
[422439324,1778949038000,-2351.0,0.00012303,2]
[422439328,1778949038000,-177.69425,0.00012389,2]
[422439340,1778949038000,-197.81098472,0.00012579,2]
[422439335,1778949038000,-209.29,0.00012501,2]
[422439326,1778949038000,-414.790126,0.00012389,2]
[422439341,1778949038000,-197.81098472,0.00012579,2]
[422439334,1778949038000,-500.0,0.00012499,2]
[422439332,1778949038000,-587.0,0.00012479,2]
[422439342,1778949038000,-2000.0,0.0001261,2]
[422439337,1778949038000,-6769.33993439,0.00012542,2]
[422439339,1778949038000,-166.66,0.00012551,2]
[422439333,1778949038000,-587.0,0.00012479,2]
[422439336,1778949038000,-2000.0,0.00012542,2]
[422439338,1778949038000,-1528.97103992,0.00012545,2]
[422439330,1778949038000,-13964.49522054,0.0001241,2]
[422439331,1778949038000,-17633.31011682,0.0001241,2]
[422439348,1778949038000,-183.5,0.00012742,2]
[422439408,1778949039000,-506.02433073,0.00013698,2]
[422439409,1778949039000,-500.0,0.00013698,2]
[422439407,1778949039000,-500.0,0.00013698,2]
[422439414,1778949039000,-500.0,0.00013698,2]
[422439413,1778949039000,-500.0,0.00013698,2]
[422439406,1778949039000,-500.0,0.00013698,2]
[422439405,1778949039000,-500.0,0.00013698,2]
[422439417,1778949039000,-500.0,0.00013698,2]
[422439416,1778949039000,-500.0,0.00013698,2]
[422439404,1778949039000,-504.92605126,0.00013698,2]
[422439412,1778949039000,-500.0,0.00013698,2]
[422439403,1778949039000,-500.0,0.00013698,2]
[422439411,1778949039000,-529.54071265,0.00013698,2]
[422439415,1778949039000,-507.39599137,0.00013698,2]
[422439421,1778949039000,-500.0,0.00013698,2]
[422439418,1778949039000,-500.0,0.00013698,2]
[422439420,1778949039000,-613.50899683,0.00013698,2]
[422439419,1778949039000,-500.0,0.00013698,2]
[422439422,1778949039000,-500.0,0.00013698,2]
[422439431,1778949039000,-500.0,0.00013698,2]
[422439425,1778949039000,-500.0,0.00013698,2]
[422439430,1778949039000,-500.0,0.00013698,2]
[422439429,1778949039000,-500.0,0.00013698,2]
[422439424,1778949039000,-500.0,0.00013698,2]